[Event "Early-Titled-Tuesday-Blitz-January-30-2024"]
[Site "Chess.com"]
[Date "2024.01.30"]
[Round "6"]
[White "thesupera12"]
[Black "Matols"]
[Result "1/2-1/2"]
[WhiteElo "2535"]
[BlackElo "2389"]
[TimeControl "180+1"]
[EndTime "9:09:45 PST"]
[Termination "Game drawn by repetition"]

1. e4 {[%clk 0:02:59.3]} 1... c6 {[%clk 0:03:00.2]} 2. b3 {[%clk 0:02:58.2]}
2... d5 {[%clk 0:03:00.4]} 3. exd5 {[%clk 0:02:58.5]} 3... cxd5 {[%clk
0:03:01.3]} 4. Bb2 {[%clk 0:02:59.1]} 4... Nc6 {[%clk 0:03:00.2]} 5. Nf3 {[%clk
0:02:59.7]} 5... Bg4 {[%clk 0:02:58.4]} 6. h3 {[%clk 0:02:57.1]} 6... Bxf3
{[%clk 0:02:57.3]} 7. Qxf3 {[%clk 0:02:56.4]} 7... e6 {[%clk 0:02:57]} 8. g3
{[%clk 0:02:52.2]} 8... Nf6 {[%clk 0:02:56.4]} 9. Bg2 {[%clk 0:02:52.1]} 9...
Be7 {[%clk 0:02:55.8]} 10. O-O {[%clk 0:02:52.3]} 10... O-O {[%clk 0:02:55.6]}
11. Nc3 {[%clk 0:02:48.6]} 11... Rc8 {[%clk 0:02:52.3]} 12. Rac1 {[%clk
0:02:42.2]} 12... a6 {[%clk 0:02:45.8]} 13. g4 {[%clk 0:02:29.7]} 13... b5
{[%clk 0:02:31]} 14. a4 {[%clk 0:02:28.1]} 14... b4 {[%clk 0:02:29.4]} 15. Ne2
{[%clk 0:02:27.3]} 15... Ne4 {[%clk 0:02:21.1]} 16. Qd3 {[%clk 0:02:09.5]} 16...
a5 {[%clk 0:02:15.4]} 17. Rfd1 {[%clk 0:01:53.8]} 17... Bf6 {[%clk 0:02:03.1]}
18. Bxf6 {[%clk 0:01:51.5]} 18... Nxf6 {[%clk 0:01:57.7]} 19. Nd4 {[%clk
0:01:50.3]} 19... Nxd4 {[%clk 0:01:55.4]} 20. Qxd4 {[%clk 0:01:51.2]} 20... Qc7
{[%clk 0:01:49.7]} 21. c4 {[%clk 0:01:48.8]} 21... dxc4 {[%clk 0:01:41]} 22.
Rxc4 {[%clk 0:01:42.6]} 22... Qd8 {[%clk 0:01:29.6]} 23. Qxd8 {[%clk 0:01:38]}
23... Rfxd8 {[%clk 0:01:30.5]} 24. Rdc1 {[%clk 0:01:27.4]} 24... Rxc4 {[%clk
0:01:25.8]} 25. Rxc4 {[%clk 0:01:28.3]} 25... g5 {[%clk 0:01:21.7]} 26. Rc5
{[%clk 0:01:27.9]} 26... Rxd2 {[%clk 0:01:04.7]} 27. Rxg5+ {[%clk 0:01:27.4]}
27... Kf8 {[%clk 0:01:05.4]} 28. Rxa5 {[%clk 0:01:28.1]} 28... Rb2 {[%clk
0:01:04.7]} 29. Rb5 {[%clk 0:01:24.8]} 29... Rxb3 {[%clk 0:01:04.3]} 30. a5
{[%clk 0:01:24.9]} 30... Ra3 {[%clk 0:01:03.2]} 31. Bb7 {[%clk 0:01:24.6]} 31...
b3 {[%clk 0:00:57.7]} 32. a6 {[%clk 0:01:24.6]} 32... Nd5 {[%clk 0:00:54.6]} 33.
Bxd5 {[%clk 0:00:56.4]} 33... exd5 {[%clk 0:00:55.1]} 34. a7 {[%clk 0:00:51.6]}
34... Rxa7 {[%clk 0:00:54.2]} 35. Rxb3 {[%clk 0:00:52.3]} 35... Ke7 {[%clk
0:00:46.4]} 36. Kg2 {[%clk 0:00:52.7]} 36... Ke6 {[%clk 0:00:46]} 37. Kf3 {[%clk
0:00:53]} 37... Ra4 {[%clk 0:00:43]} 38. h4 {[%clk 0:00:47.3]} 38... Ke5 {[%clk
0:00:35.7]} 39. Rb7 {[%clk 0:00:45.2]} 39... f5 {[%clk 0:00:23.4]} 40. gxf5
{[%clk 0:00:40.6]} 40... Rxh4 {[%clk 0:00:21.4]} 41. Kg3 {[%clk 0:00:38.2]}
41... Rh1 {[%clk 0:00:18]} 42. Rf7 {[%clk 0:00:34.3]} 42... d4 {[%clk 0:00:18]}
43. Kf3 {[%clk 0:00:33.7]} 43... d3 {[%clk 0:00:17]} 44. Ke3 {[%clk 0:00:33.6]}
44... Rh5 {[%clk 0:00:15.6]} 45. f6 {[%clk 0:00:29.7]} 45... Rh6 {[%clk
0:00:14.5]} 46. f4+ {[%clk 0:00:16.4]} 46... Ke6 {[%clk 0:00:13.3]} 47. Ra7
{[%clk 0:00:08.8]} 47... Kxf6 {[%clk 0:00:12.5]} 48. Kxd3 {[%clk 0:00:07.8]}
48... Rh3+ {[%clk 0:00:11.8]} 49. Ke4 {[%clk 0:00:07.1]} 49... Rh1 {[%clk
0:00:12]} 50. Ra6+ {[%clk 0:00:07.6]} 50... Kf7 {[%clk 0:00:12.1]} 51. Ke5
{[%clk 0:00:08]} 51... Rb1 {[%clk 0:00:06.1]} 52. Kf5 {[%clk 0:00:07.3]} 52...
Rb5+ {[%clk 0:00:05.3]} 53. Kg4 {[%clk 0:00:07.9]} 53... h5+ {[%clk 0:00:04.8]}
54. Kh4 {[%clk 0:00:07.3]} 54... Rc5 {[%clk 0:00:05]} 55. Rb6 {[%clk 0:00:07.1]}
55... Ra5 {[%clk 0:00:04.7]} 56. Rc6 {[%clk 0:00:07.7]} 56... Rb5 {[%clk
0:00:04.8]} 57. Rd6 {[%clk 0:00:08]} 57... Ra5 {[%clk 0:00:04.9]} 58. Rh6 {[%clk
0:00:08.7]} 58... Rb5 {[%clk 0:00:04.3]} 59. Rd6 {[%clk 0:00:08.8]} 59... Ra5
{[%clk 0:00:04.3]} 60. Rd2 {[%clk 0:00:09.2]} 60... Rb5 {[%clk 0:00:03.8]} 61.
Ra2 {[%clk 0:00:09.9]} 61... Kf6 {[%clk 0:00:04]} 62. Ra6+ {[%clk 0:00:09]}
62... Kf7 {[%clk 0:00:04.1]} 63. Ra4 {[%clk 0:00:09.1]} 63... Rc5 {[%clk
0:00:04]} 64. Rd4 {[%clk 0:00:09.4]} 64... Rb5 {[%clk 0:00:04.1]} 65. Rd6 {[%clk
0:00:09.9]} 1/2-1/2

[Event "Early-Titled-Tuesday-Blitz-January-30-2024"]
[Site "Chess.com"]
[Date "2024.01.30"]
[Round "6"]
[White "Felix-Rose"]
[Black "dianamirza"]
[Result "1-0"]
[WhiteElo "2352"]
[BlackElo "1991"]
[TimeControl "180+1"]
[EndTime "9:09:50 PST"]
[Termination "Felix-Rose won on time"]

1. e4 {[%clk 0:02:59.7]} 1... d5 {[%clk 0:02:59.3]} 2. exd5 {[%clk 0:02:59.9]}
2... Qxd5 {[%clk 0:03:00.2]} 3. Nc3 {[%clk 0:03:00.2]} 3... Qd8 {[%clk
0:03:01.1]} 4. d4 {[%clk 0:03:00.4]} 4... Nf6 {[%clk 0:03:02]} 5. Bf4 {[%clk
0:03:00.9]} 5... Bg4 {[%clk 0:03:01]} 6. Qd2 {[%clk 0:02:57.3]} 6... e6 {[%clk
0:02:59.8]} 7. h3 {[%clk 0:02:57.2]} 7... Bh5 {[%clk 0:02:59.6]} 8. g4 {[%clk
0:02:57]} 8... Bg6 {[%clk 0:03:00.2]} 9. O-O-O {[%clk 0:02:56.9]} 9... Bb4
{[%clk 0:02:59]} 10. Nge2 {[%clk 0:02:44.4]} 10... c6 {[%clk 0:02:56.2]} 11. Qe3
{[%clk 0:02:29.4]} 11... Nbd7 {[%clk 0:02:53.4]} 12. g5 {[%clk 0:02:21.6]} 12...
Nd5 {[%clk 0:02:35.1]} 13. Nxd5 {[%clk 0:02:20.2]} 13... cxd5 {[%clk 0:02:34.6]}
14. Ng3 {[%clk 0:02:14.7]} 14... Qa5 {[%clk 0:02:30.6]} 15. Kb1 {[%clk
0:02:09.5]} 15... Rc8 {[%clk 0:02:25.2]} 16. Bd3 {[%clk 0:02:07.8]} 16... Qa4
{[%clk 0:02:20.4]} 17. Bxg6 {[%clk 0:01:33.2]} 17... hxg6 {[%clk 0:02:18.4]} 18.
Qb3 {[%clk 0:01:27.8]} 18... Qxb3 {[%clk 0:02:14.4]} 19. axb3 {[%clk 0:01:27.6]}
19... a5 {[%clk 0:01:51.9]} 20. h4 {[%clk 0:01:26.9]} 20... a4 {[%clk
0:01:51.6]} 21. bxa4 {[%clk 0:01:24.4]} 21... Nb6 {[%clk 0:01:49.4]} 22. c3
{[%clk 0:01:21.1]} 22... Be7 {[%clk 0:01:35.1]} 23. Kc2 {[%clk 0:00:57.1]} 23...
Nxa4 {[%clk 0:01:29.8]} 24. Ra1 {[%clk 0:00:56.8]} 24... Nb6 {[%clk 0:01:24.1]}
25. Ra7 {[%clk 0:00:52.9]} 25... Nc4 {[%clk 0:01:06.8]} 26. Rxb7 {[%clk
0:00:49.6]} 26... f6 {[%clk 0:01:03.1]} 27. Re1 {[%clk 0:00:41.9]} 27... Kf7
{[%clk 0:00:56.8]} 28. b3 {[%clk 0:00:29.1]} 28... Rxh4 {[%clk 0:00:43.8]} 29.
bxc4 {[%clk 0:00:25.5]} 29... Rxf4 {[%clk 0:00:43.7]} 30. c5 {[%clk 0:00:18.9]}
30... Rxf2+ {[%clk 0:00:41.4]} 31. Re2 {[%clk 0:00:19.7]} 31... Rf3 {[%clk
0:00:29.8]} 32. gxf6 {[%clk 0:00:16.7]} 32... gxf6 {[%clk 0:00:28.4]} 33. Nf1
{[%clk 0:00:16.4]} 33... Rxf1 {[%clk 0:00:28]} 34. Rb6 {[%clk 0:00:14.8]} 34...
e5 {[%clk 0:00:20.3]} 35. dxe5 {[%clk 0:00:13.6]} 35... fxe5 {[%clk 0:00:16.7]}
36. Rxe5 {[%clk 0:00:13.6]} 36... Bxc5 {[%clk 0:00:17.2]} 37. Rb7+ {[%clk
0:00:13.5]} 37... Kf6 {[%clk 0:00:15.8]} 38. Rxd5 {[%clk 0:00:13.6]} 38... Bb4
{[%clk 0:00:14.6]} 39. Rxb4 {[%clk 0:00:13.7]} 39... g5 {[%clk 0:00:13.6]} 40.
Rb6+ {[%clk 0:00:13.6]} 40... Kg7 {[%clk 0:00:12.5]} 41. Rxg5+ {[%clk 0:00:14]}
41... Kh7 {[%clk 0:00:11.2]} 42. Rb4 {[%clk 0:00:13.6]} 42... Rh1 {[%clk
0:00:09.1]} 43. Rb7+ {[%clk 0:00:12.2]} 43... Kh6 {[%clk 0:00:07.7]} 44. Rg3
{[%clk 0:00:12.4]} 44... Rh4 {[%clk 0:00:07]} 45. Kb3 {[%clk 0:00:12.4]} 45...
Re4 {[%clk 0:00:05.6]} 46. Rb6+ {[%clk 0:00:12.7]} 46... Kh7 {[%clk 0:00:05]}
47. Rb7+ {[%clk 0:00:12.4]} 47... Kh6 {[%clk 0:00:05.1]} 48. Rd3 {[%clk
0:00:12.5]} 48... Kg5 {[%clk 0:00:04.8]} 49. Rd5+ {[%clk 0:00:12.6]} 49... Kf4
{[%clk 0:00:05]} 50. Rf7+ {[%clk 0:00:12.8]} 50... Ke3 {[%clk 0:00:05.4]} 51.
Rb5 {[%clk 0:00:11.7]} 51... Kd3 {[%clk 0:00:04.8]} 52. Rd7+ {[%clk 0:00:12]}
52... Ke3 {[%clk 0:00:04.4]} 53. Rbd5 {[%clk 0:00:11.6]} 53... Re6 {[%clk
0:00:02.7]} 54. Rd3+ {[%clk 0:00:11.9]} 54... Ke4 {[%clk 0:00:02.5]} 55. R7d4+
{[%clk 0:00:12]} 55... Ke5 {[%clk 0:00:02.7]} 56. Re3+ {[%clk 0:00:12.5]} 56...
Kf6 {[%clk 0:00:02.7]} 57. Rf4+ {[%clk 0:00:12.9]} 57... Ke7 {[%clk 0:00:02.3]}
58. Rxe6+ {[%clk 0:00:13.2]} 58... Kxe6 {[%clk 0:00:02.7]} 59. Rd4 {[%clk
0:00:14.1]} 59... Ke5 {[%clk 0:00:02.5]} 60. Rd7 {[%clk 0:00:14.1]} 60... Ke6
{[%clk 0:00:02.7]} 61. Rd2 {[%clk 0:00:14.1]} 61... Rc5 {[%clk 0:00:02.6]} 62.
c4 {[%clk 0:00:14.4]} 1-0

[Event "Early-Titled-Tuesday-Blitz-January-30-2024"]
[Site "Chess.com"]
[Date "2024.01.30"]
[Round "6"]
[White "GaiozNigalidze"]
[Black "TigrVShlyape"]
[Result "0-1"]
[WhiteElo "2714"]
[BlackElo "2931"]
[TimeControl "180+1"]
[EndTime "9:09:55 PST"]
[Termination "TigrVShlyape won by resignation"]

1. d4 {[%clk 0:03:00.9]} 1... f5 {[%clk 0:02:58]} 2. Nc3 {[%clk 0:03:00.1]} 2...
Nf6 {[%clk 0:02:57.4]} 3. Bg5 {[%clk 0:02:59.4]} 3... d5 {[%clk 0:02:57.6]} 4.
Bxf6 {[%clk 0:02:58.6]} 4... exf6 {[%clk 0:02:57.1]} 5. e3 {[%clk 0:02:59.2]}
5... Be6 {[%clk 0:02:55.9]} 6. Bd3 {[%clk 0:02:57.9]} 6... Nc6 {[%clk 0:02:55]}
7. a3 {[%clk 0:02:57.2]} 7... Qd7 {[%clk 0:02:51.6]} 8. h3 {[%clk 0:02:56.1]}
8... g6 {[%clk 0:02:22]} 9. b4 {[%clk 0:02:45.8]} 9... Ne7 {[%clk 0:02:05.3]}
10. Nge2 {[%clk 0:02:38.6]} 10... h5 {[%clk 0:01:56.6]} 11. h4 {[%clk
0:02:33.7]} 11... Bh6 {[%clk 0:01:48.5]} 12. g3 {[%clk 0:02:30.8]} 12... Nc8
{[%clk 0:01:44.6]} 13. Nf4 {[%clk 0:02:26.9]} 13... Bf7 {[%clk 0:01:44.3]} 14.
Qf3 {[%clk 0:02:16.7]} 14... c6 {[%clk 0:01:43.6]} 15. Na4 {[%clk 0:01:54.9]}
15... b6 {[%clk 0:01:36.9]} 16. Nc3 {[%clk 0:01:42.3]} 16... Nd6 {[%clk
0:01:32.5]} 17. b5 {[%clk 0:01:24.3]} 17... Bxf4 {[%clk 0:01:31.6]} 18. gxf4
{[%clk 0:01:01.2]} 18... Nxb5 {[%clk 0:01:15.5]} 19. Nxb5 {[%clk 0:00:45.2]}
19... cxb5 {[%clk 0:01:15.2]} 20. Rb1 {[%clk 0:00:45.8]} 20... a6 {[%clk
0:01:14]} 21. a4 {[%clk 0:00:46.3]} 21... O-O {[%clk 0:01:02.7]} 22. axb5 {[%clk
0:00:44.4]} 22... a5 {[%clk 0:01:03.1]} 23. O-O {[%clk 0:00:38.6]} 23... Rfc8
{[%clk 0:00:57.7]} 24. Rb3 {[%clk 0:00:36.1]} 24... Ra7 {[%clk 0:00:54.7]} 25.
Ra3 {[%clk 0:00:35.2]} 25... Rac7 {[%clk 0:00:54.3]} 26. Rfa1 {[%clk 0:00:32.2]}
26... Rc3 {[%clk 0:00:52]} 27. Qd1 {[%clk 0:00:29.4]} 27... Qd6 {[%clk
0:00:50.9]} 28. Qc1 {[%clk 0:00:26.5]} 28... Kg7 {[%clk 0:00:44]} 29. Rxc3
{[%clk 0:00:23.3]} 29... Rxc3 {[%clk 0:00:43.5]} 30. Qb2 {[%clk 0:00:23.6]}
30... Rc8 {[%clk 0:00:42.2]} 31. Kg2 {[%clk 0:00:23.4]} 31... Be6 {[%clk
0:00:36.6]} 32. Qa3 {[%clk 0:00:22.1]} 32... Qc7 {[%clk 0:00:34.4]} 33. Rb1
{[%clk 0:00:20.6]} 33... Kf7 {[%clk 0:00:33.2]} 34. Ra1 {[%clk 0:00:21]} 34...
Rg8 {[%clk 0:00:30]} 35. Kf3 {[%clk 0:00:21.2]} 35... g5 {[%clk 0:00:27.2]} 36.
hxg5 {[%clk 0:00:13.7]} 36... fxg5 {[%clk 0:00:27.4]} 37. fxg5 {[%clk
0:00:14.2]} 37... Rxg5 {[%clk 0:00:27]} 38. Ke2 {[%clk 0:00:13.9]} 38... f4
{[%clk 0:00:26.1]} 39. Rf1 {[%clk 0:00:09.9]} 39... Bh3 {[%clk 0:00:21.9]} 40.
Rh1 {[%clk 0:00:09]} 40... Bg4+ {[%clk 0:00:18.5]} 41. Kd2 {[%clk 0:00:08]}
41... Rg8 {[%clk 0:00:12.6]} 42. Kc1 {[%clk 0:00:05.8]} 42... Rf8 {[%clk
0:00:11.9]} 43. Kb2 {[%clk 0:00:04.9]} 43... Qe7 {[%clk 0:00:10.3]} 44. Qc3
{[%clk 0:00:02.1]} 44... fxe3 {[%clk 0:00:09.4]} 45. fxe3 {[%clk 0:00:03]} 45...
Kg7 {[%clk 0:00:09.4]} 46. Bf1 {[%clk 0:00:02.1]} 46... Re8 {[%clk 0:00:08.9]}
47. Bh3 {[%clk 0:00:01.3]} 47... Qxe3 {[%clk 0:00:08.1]} 48. Qc7+ {[%clk
0:00:01.5]} 48... Re7 {[%clk 0:00:07.9]} 49. Qxb6 {[%clk 0:00:02.2]} 49... Bxh3
{[%clk 0:00:07.9]} 50. Qd6 {[%clk 0:00:02.4]} 50... Bg4 {[%clk 0:00:07.7]} 51.
Qc5 {[%clk 0:00:02.2]} 51... Qe4 {[%clk 0:00:06.7]} 52. Rf1 {[%clk 0:00:01.7]}
52... h4 {[%clk 0:00:06]} 53. b6 {[%clk 0:00:02.2]} 53... h3 {[%clk 0:00:05.9]}
54. Qc6 {[%clk 0:00:02.8]} 54... Qe6 {[%clk 0:00:05.7]} 55. Qc5 {[%clk
0:00:01.6]} 55... Rb7 {[%clk 0:00:04.7]} 56. Rg1 {[%clk 0:00:02.1]} 56... Qxb6+
{[%clk 0:00:04.1]} 57. Qxb6 {[%clk 0:00:01.7]} 57... Rxb6+ {[%clk 0:00:04.1]}
58. Ka3 {[%clk 0:00:02.6]} 58... Rg6 {[%clk 0:00:04.4]} 59. Rh1 {[%clk
0:00:03.1]} 59... Kf6 {[%clk 0:00:03.1]} 60. Rh2 {[%clk 0:00:03.6]} 60... Kf5
{[%clk 0:00:03.4]} 61. Ka4 {[%clk 0:00:04.5]} 61... Ke4 {[%clk 0:00:03.8]} 62.
Kxa5 {[%clk 0:00:05]} 62... Kxd4 {[%clk 0:00:04.2]} 63. Kb4 {[%clk 0:00:05.9]}
63... Ke3 {[%clk 0:00:03.9]} 64. Kc5 {[%clk 0:00:05.9]} 64... d4 {[%clk
0:00:04.4]} 65. Kc4 {[%clk 0:00:05.5]} 65... Rh6 {[%clk 0:00:04.7]} 66. c3
{[%clk 0:00:06]} 66... d3 {[%clk 0:00:04.6]} 67. Kb4 {[%clk 0:00:05.9]} 67... d2
{[%clk 0:00:04.9]} 68. Rxh3+ {[%clk 0:00:05.9]} 68... Rxh3 {[%clk 0:00:04.3]}
0-1

[Event "Early-Titled-Tuesday-Blitz-January-30-2024"]
[Site "Chess.com"]
[Date "2024.01.30"]
[Round "6"]
[White "Grossboss19"]
[Black "monomita"]
[Result "1-0"]
[WhiteElo "2613"]
[BlackElo "2764"]
[TimeControl "180+1"]
[EndTime "9:09:55 PST"]
[Termination "Grossboss19 won by checkmate"]

1. d4 {[%clk 0:02:56.7]} 1... Nf6 {[%clk 0:01:23.7]} 2. c4 {[%clk 0:02:54.7]}
2... e6 {[%clk 0:01:24]} 3. Nc3 {[%clk 0:02:55.3]} 3... d5 {[%clk 0:01:24.4]} 4.
cxd5 {[%clk 0:02:55.2]} 4... exd5 {[%clk 0:01:25.3]} 5. Bg5 {[%clk 0:02:55.7]}
5... Be7 {[%clk 0:01:25.3]} 6. e3 {[%clk 0:02:55.8]} 6... O-O {[%clk 0:01:24.9]}
7. Bd3 {[%clk 0:02:56]} 7... h6 {[%clk 0:01:25.3]} 8. Bh4 {[%clk 0:02:55.9]}
8... b6 {[%clk 0:01:25.9]} 9. Nf3 {[%clk 0:02:53.8]} 9... Bb7 {[%clk 0:01:26.5]}
10. O-O {[%clk 0:02:54]} 10... Nbd7 {[%clk 0:01:27.1]} 11. Rc1 {[%clk
0:02:52.6]} 11... c5 {[%clk 0:01:27.5]} 12. dxc5 {[%clk 0:02:45.6]} 12... bxc5
{[%clk 0:01:23.7]} 13. Bb1 {[%clk 0:02:44.9]} 13... Nb6 {[%clk 0:01:16.6]} 14.
b3 {[%clk 0:02:38.8]} 14... Rc8 {[%clk 0:01:11]} 15. Qd3 {[%clk 0:02:34.2]}
15... Ne4 {[%clk 0:01:05.7]} 16. Bxe7 {[%clk 0:02:04.7]} 16... Qxe7 {[%clk
0:01:05.1]} 17. Rfd1 {[%clk 0:02:03.1]} 17... Rfd8 {[%clk 0:01:03]} 18. Qe2
{[%clk 0:01:55.3]} 18... Nxc3 {[%clk 0:00:58.9]} 19. Rxc3 {[%clk 0:01:55.2]}
19... d4 {[%clk 0:00:59.2]} 20. Rcc1 {[%clk 0:01:53.8]} 20... dxe3 {[%clk
0:00:56.1]} 21. Rxd8+ {[%clk 0:01:53.5]} 21... Rxd8 {[%clk 0:00:54.3]} 22. Qxe3
{[%clk 0:01:53.4]} 22... Qxe3 {[%clk 0:00:53.8]} 23. fxe3 {[%clk 0:01:54.3]}
23... g5 {[%clk 0:00:40.8]} 24. h3 {[%clk 0:01:50.6]} 24... Bxf3 {[%clk
0:00:35.9]} 25. gxf3 {[%clk 0:01:50.5]} 25... Rd2 {[%clk 0:00:35.5]} 26. Be4
{[%clk 0:01:40.1]} 26... Nd7 {[%clk 0:00:33.3]} 27. Rc2 {[%clk 0:01:37.7]} 27...
Rxc2 {[%clk 0:00:29.5]} 28. Bxc2 {[%clk 0:01:38.6]} 28... Kg7 {[%clk 0:00:28.5]}
29. f4 {[%clk 0:01:37.1]} 29... Nf6 {[%clk 0:00:25.3]} 30. Kf2 {[%clk
0:01:34.4]} 30... Nd5 {[%clk 0:00:21.5]} 31. Kf3 {[%clk 0:01:32.4]} 31... Kf6
{[%clk 0:00:20.1]} 32. a3 {[%clk 0:01:30.7]} 32... Nc3 {[%clk 0:00:19.8]} 33.
Bd3 {[%clk 0:01:24.5]} 33... a5 {[%clk 0:00:19.4]} 34. e4 {[%clk 0:01:23.2]}
34... Ke7 {[%clk 0:00:05.5]} 35. fxg5 {[%clk 0:00:58.7]} 35... hxg5 {[%clk
0:00:06.4]} 36. Ke3 {[%clk 0:00:59.3]} 36... Kd6 {[%clk 0:00:05.2]} 37. Kd2
{[%clk 0:00:57.2]} 37... Na2 {[%clk 0:00:02.2]} 38. Bb1 {[%clk 0:00:42]} 38...
Ke5 {[%clk 0:00:02.4]} 39. Bxa2 {[%clk 0:00:41.6]} 39... Kxe4 {[%clk 0:00:02.9]}
40. Bb1+ {[%clk 0:00:41.1]} 40... Kf4 {[%clk 0:00:02.3]} 41. Bd3 {[%clk
0:00:32.6]} 41... f5 {[%clk 0:00:02.2]} 42. Ke2 {[%clk 0:00:31.5]} 42... g4
{[%clk 0:00:02.5]} 43. hxg4 {[%clk 0:00:30.8]} 43... fxg4 {[%clk 0:00:03.4]} 44.
Ba6 {[%clk 0:00:27.6]} 44... Ke4 {[%clk 0:00:03.4]} 45. Kd2 {[%clk 0:00:27.9]}
45... Kd4 {[%clk 0:00:01.8]} 46. Be2 {[%clk 0:00:27.2]} 46... g3 {[%clk
0:00:02]} 47. Bf1 {[%clk 0:00:27.3]} 47... a4 {[%clk 0:00:02.1]} 48. bxa4 {[%clk
0:00:25.8]} 48... c4 {[%clk 0:00:02.8]} 49. Kc2 {[%clk 0:00:24.7]} 49... Kc5
{[%clk 0:00:02.5]} 50. Kc3 {[%clk 0:00:24.5]} 50... Kb6 {[%clk 0:00:01.5]} 51.
Kxc4 {[%clk 0:00:24.2]} 51... Ka5 {[%clk 0:00:02.4]} 52. Kb3 {[%clk 0:00:24.5]}
52... Kb6 {[%clk 0:00:03.3]} 53. Bg2 {[%clk 0:00:24.9]} 53... Ka5 {[%clk
0:00:03.6]} 54. Bf3 {[%clk 0:00:24.6]} 54... Kb6 {[%clk 0:00:04.5]} 55. Kb4
{[%clk 0:00:25]} 55... Ka7 {[%clk 0:00:05]} 56. a5 {[%clk 0:00:25]} 56... Kb8
{[%clk 0:00:05.9]} 57. Kb5 {[%clk 0:00:25.1]} 57... Ka7 {[%clk 0:00:06.8]} 58.
a4 {[%clk 0:00:25.6]} 58... Kb8 {[%clk 0:00:07.7]} 59. Kb6 {[%clk 0:00:25.8]}
59... Kc8 {[%clk 0:00:08.2]} 60. a6 {[%clk 0:00:26.2]} 60... Kd7 {[%clk
0:00:09.1]} 61. a7 {[%clk 0:00:26.1]} 61... Kd6 {[%clk 0:00:10]} 62. a8=Q {[%clk
0:00:25.8]} 62... Ke5 {[%clk 0:00:10.9]} 63. Qe4+ {[%clk 0:00:25.7]} 63... Kd6
{[%clk 0:00:11.1]} 64. Qf4+ {[%clk 0:00:24.5]} 64... Ke7 {[%clk 0:00:12]} 65.
Qxg3 {[%clk 0:00:24.7]} 65... Ke6 {[%clk 0:00:12.1]} 66. Qg4+ {[%clk 0:00:24.1]}
66... Ke5 {[%clk 0:00:13]} 67. Qe4+ {[%clk 0:00:24.1]} 67... Kf6 {[%clk
0:00:13.4]} 68. Qf4+ {[%clk 0:00:24.1]} 68... Ke6 {[%clk 0:00:13.5]} 69. Bg4+
{[%clk 0:00:24.6]} 69... Kd5 {[%clk 0:00:13.8]} 70. Qf5+ {[%clk 0:00:21.6]}
70... Kd6 {[%clk 0:00:14.5]} 71. Qe6# {[%clk 0:00:20.2]} 1-0